[Event "Early-Titled-Tuesday-Blitz-March-19-2024"]
[Site "Chess.com"]
[Date "2024.03.19"]
[Round "6"]
[White "AlexPapasimakopoulos"]
[Black "VitaliyBernadskiy"]
[Result "1/2-1/2"]
[WhiteElo "2760"]
[BlackElo "2874"]
[TimeControl "180+1"]
[EndTime "9:07:14 PDT"]
[Termination "Game drawn by repetition"]

1. d4 {[%clk 0:03:00.9]} 1... d5 {[%clk 0:02:45.1]} 2. c4 {[%clk 0:03:01.2]}
2... c6 {[%clk 0:02:45.3]} 3. cxd5 {[%clk 0:03:01]} 3... cxd5 {[%clk 0:02:45.6]}
4. Bf4 {[%clk 0:03:01]} 4... Nc6 {[%clk 0:02:45.8]} 5. e3 {[%clk 0:03:00.9]}
5... Nf6 {[%clk 0:02:45.9]} 6. Nc3 {[%clk 0:03:00.5]} 6... a6 {[%clk 0:02:46.1]}
7. Bd3 {[%clk 0:03:00]} 7... Bg4 {[%clk 0:02:45.7]} 8. Nge2 {[%clk 0:03:00.6]}
8... e6 {[%clk 0:02:45.5]} 9. O-O {[%clk 0:02:59.9]} 9... Be7 {[%clk 0:02:44.8]}
10. Rc1 {[%clk 0:02:58.9]} 10... O-O {[%clk 0:02:44.7]} 11. Na4 {[%clk
0:02:56.7]} 11... Nh5 {[%clk 0:02:41.3]} 12. Be5 {[%clk 0:02:50]} 12... f6
{[%clk 0:02:12.2]} 13. Bg3 {[%clk 0:02:49.5]} 13... Nxg3 {[%clk 0:02:11.4]} 14.
hxg3 {[%clk 0:02:50.4]} 14... e5 {[%clk 0:02:07.5]} 15. Nc5 {[%clk 0:02:37.7]}
15... e4 {[%clk 0:01:56.4]} 16. Bc2 {[%clk 0:02:23.6]} 16... Bxc5 {[%clk
0:01:52.6]} 17. dxc5 {[%clk 0:02:24.5]} 17... Kh8 {[%clk 0:01:47]} 18. Qd2
{[%clk 0:02:20.2]} 18... Bxe2 {[%clk 0:01:42.1]} 19. Qxe2 {[%clk 0:02:20.1]}
19... Qe7 {[%clk 0:01:26.2]} 20. Bb3 {[%clk 0:02:17.9]} 20... Rad8 {[%clk
0:01:26.1]} 21. Rfd1 {[%clk 0:02:16.2]} 21... Qe5 {[%clk 0:01:25.7]} 22. Ba4
{[%clk 0:02:14.9]} 22... f5 {[%clk 0:01:19.2]} 23. Bxc6 {[%clk 0:02:14.6]} 23...
bxc6 {[%clk 0:01:20.1]} 24. Qxa6 {[%clk 0:02:07.5]} 24... Rf6 {[%clk 0:01:11]}
25. Rd4 {[%clk 0:02:01.7]} 25... g5 {[%clk 0:01:08.9]} 26. Qe2 {[%clk
0:01:47.6]} 26... Rg8 {[%clk 0:01:06.9]} 27. b4 {[%clk 0:01:44.5]} 27... f4
{[%clk 0:01:07]} 28. Qg4 {[%clk 0:01:35.8]} 28... Qe8 {[%clk 0:00:59]} 29. b5
{[%clk 0:01:24]} 29... h5 {[%clk 0:00:56.3]} 30. Qh3 {[%clk 0:01:24.3]} 30... h4
{[%clk 0:00:53.3]} 31. gxf4 {[%clk 0:01:22]} 31... gxf4 {[%clk 0:00:50.2]} 32.
Qxh4+ {[%clk 0:01:12]} 32... Kg7 {[%clk 0:00:50]} 33. bxc6 {[%clk 0:01:11.8]}
33... Rh8 {[%clk 0:00:39.1]} 34. Qg4+ {[%clk 0:01:07.2]} 34... Rg6 {[%clk
0:00:32.4]} 35. Qxf4 {[%clk 0:00:43.8]} 35... Qe6 {[%clk 0:00:30.6]} 36. Rcd1
{[%clk 0:00:33.3]} 36... Rxg2+ {[%clk 0:00:30]} 37. Kf1 {[%clk 0:00:32.4]} 37...
Rhh2 {[%clk 0:00:17.9]} 38. Rxd5 {[%clk 0:00:25.7]} 38... Rxf2+ {[%clk
0:00:10.1]} 39. Qxf2 {[%clk 0:00:25.3]} 39... Qh3+ {[%clk 0:00:10.2]} 40. Ke1
{[%clk 0:00:20.3]} 40... Rxf2 {[%clk 0:00:11.1]} 41. Kxf2 {[%clk 0:00:19.4]}
41... Qf3+ {[%clk 0:00:11.6]} 42. Kg1 {[%clk 0:00:19.7]} 42... Qg3+ {[%clk
0:00:10.8]} 43. Kf1 {[%clk 0:00:20.1]} 43... Qf3+ {[%clk 0:00:11]} 44. Kg1
{[%clk 0:00:20.7]} 44... Qg3+ {[%clk 0:00:10.9]} 45. Kf1 {[%clk 0:00:21.3]}
45... Qf3+ {[%clk 0:00:11.2]} 46. Kg1 {[%clk 0:00:21.9]} 1/2-1/2

[Event "Early-Titled-Tuesday-Blitz-March-19-2024"]
[Site "Chess.com"]
[Date "2024.03.19"]
[Round "6"]
[White "Chopper1905"]
[Black "Legendinunknown"]
[Result "0-1"]
[WhiteElo "2948"]
[BlackElo "2842"]
[TimeControl "180+1"]
[EndTime "9:07:15 PDT"]
[Termination "Legendinunknown won by checkmate"]

1. Nf3 {[%clk 0:03:00.9]} 1... Nf6 {[%clk 0:02:58.6]} 2. c4 {[%clk 0:02:56.4]}
2... e6 {[%clk 0:02:55]} 3. Nc3 {[%clk 0:02:55.7]} 3... Bb4 {[%clk 0:02:52.3]}
4. Qc2 {[%clk 0:02:55.3]} 4... O-O {[%clk 0:02:50.3]} 5. a3 {[%clk 0:02:54.9]}
5... Bxc3 {[%clk 0:02:49.7]} 6. Qxc3 {[%clk 0:02:55.8]} 6... d6 {[%clk
0:02:49.6]} 7. b4 {[%clk 0:02:50.8]} 7... e5 {[%clk 0:02:49.1]} 8. Bb2 {[%clk
0:02:50.8]} 8... Nc6 {[%clk 0:02:45.5]} 9. g3 {[%clk 0:02:49.1]} 9... Bf5 {[%clk
0:02:38.8]} 10. Bg2 {[%clk 0:02:47.5]} 10... Qd7 {[%clk 0:02:38.8]} 11. h3
{[%clk 0:02:46.7]} 11... Rfe8 {[%clk 0:02:34.5]} 12. g4 {[%clk 0:02:42]} 12...
Bg6 {[%clk 0:02:33.6]} 13. Nh4 {[%clk 0:02:31]} 13... d5 {[%clk 0:02:29.7]} 14.
Nxg6 {[%clk 0:01:34.1]} 14... hxg6 {[%clk 0:02:27]} 15. g5 {[%clk 0:01:30]}
15... d4 {[%clk 0:02:13.7]} 16. Qg3 {[%clk 0:01:09.9]} 16... Nh5 {[%clk
0:02:09.4]} 17. Qg4 {[%clk 0:01:10.1]} 17... Qe7 {[%clk 0:02:03.2]} 18. e3
{[%clk 0:01:06.9]} 18... Rad8 {[%clk 0:01:59.7]} 19. O-O {[%clk 0:01:00.3]}
19... e4 {[%clk 0:01:41]} 20. exd4 {[%clk 0:00:30.3]} 20... Nxd4 {[%clk
0:01:36.4]} 21. Rae1 {[%clk 0:00:30.9]} 21... Ne6 {[%clk 0:01:35.5]} 22. Rxe4
{[%clk 0:00:22.4]} 22... Rxd2 {[%clk 0:01:30.1]} 23. Bc1 {[%clk 0:00:19]} 23...
Ra2 {[%clk 0:01:26]} 24. Rfe1 {[%clk 0:00:18.6]} 24... Qd6 {[%clk 0:01:21.1]}
25. c5 {[%clk 0:00:17.5]} 25... Qd3 {[%clk 0:01:16.8]} 26. R4e3 {[%clk
0:00:16.7]} 26... Qc2 {[%clk 0:00:59.8]} 27. R3e2 {[%clk 0:00:14.9]} 27... Qb3
{[%clk 0:00:59.6]} 28. Rxa2 {[%clk 0:00:14.7]} 28... Qxa2 {[%clk 0:01:00.5]} 29.
Bxb7 {[%clk 0:00:14.9]} 29... Rd8 {[%clk 0:01:00.6]} 30. Bg2 {[%clk 0:00:07.1]}
30... Qc2 {[%clk 0:00:58.1]} 31. Bf1 {[%clk 0:00:06.9]} 31... Rd4 {[%clk
0:00:56.4]} 32. Qf3 {[%clk 0:00:05.2]} 32... Nhf4 {[%clk 0:00:54.3]} 33. Be3
{[%clk 0:00:05.5]} 33... Qc3 {[%clk 0:00:20.9]} 34. Rc1 {[%clk 0:00:05.8]} 34...
Qxa3 {[%clk 0:00:20.9]} 35. h4 {[%clk 0:00:06.4]} 35... Nd5 {[%clk 0:00:19.4]}
36. Re1 {[%clk 0:00:04.5]} 36... Nxe3 {[%clk 0:00:19.3]} 37. Rxe3 {[%clk
0:00:05.1]} 37... Qxb4 {[%clk 0:00:19.7]} 38. Bh3 {[%clk 0:00:02.9]} 38... Rxh4
{[%clk 0:00:15.3]} 39. Bxe6 {[%clk 0:00:02.3]} 39... Qb1+ {[%clk 0:00:15.4]} 40.
Kg2 {[%clk 0:00:01.8]} 40... Qh1+ {[%clk 0:00:15.3]} 41. Kg3 {[%clk 0:00:02.4]}
41... Qh2# {[%clk 0:00:16.2]} 0-1

[Event "Early-Titled-Tuesday-Blitz-March-19-2024"]
[Site "Chess.com"]
[Date "2024.03.19"]
[Round "6"]
[White "esrosenberg"]
[Black "edgarhay012"]
[Result "1-0"]
[WhiteElo "2464"]
[BlackElo "2628"]
[TimeControl "180+1"]
[EndTime "9:07:15 PDT"]
[Termination "esrosenberg won by checkmate"]

1. d4 {[%clk 0:03:00]} 1... Nf6 {[%clk 0:02:53.3]} 2. Nf3 {[%clk 0:03:00.1]}
2... e6 {[%clk 0:02:51.4]} 3. g3 {[%clk 0:03:00.4]} 3... d6 {[%clk 0:02:51.2]}
4. Bg2 {[%clk 0:03:00.3]} 4... Be7 {[%clk 0:02:50.3]} 5. O-O {[%clk 0:03:00.6]}
5... O-O {[%clk 0:02:50.8]} 6. c4 {[%clk 0:03:01.1]} 6... Nbd7 {[%clk
0:02:51.2]} 7. Nc3 {[%clk 0:03:01.2]} 7... Rb8 {[%clk 0:02:50.6]} 8. b3 {[%clk
0:02:49.3]} 8... b6 {[%clk 0:02:47.6]} 9. Bb2 {[%clk 0:02:48.7]} 9... Bb7 {[%clk
0:02:47.4]} 10. Qc2 {[%clk 0:02:47.5]} 10... d5 {[%clk 0:02:45.6]} 11. a4 {[%clk
0:02:42.4]} 11... c5 {[%clk 0:02:45.2]} 12. a5 {[%clk 0:02:40.9]} 12... bxa5
{[%clk 0:02:39.9]} 13. Rfd1 {[%clk 0:02:39.4]} 13... a6 {[%clk 0:02:31.5]} 14.
dxc5 {[%clk 0:02:34.6]} 14... Nxc5 {[%clk 0:02:32.4]} 15. cxd5 {[%clk 0:02:27]}
15... exd5 {[%clk 0:02:29.5]} 16. Na4 {[%clk 0:02:20.7]} 16... Nxa4 {[%clk
0:02:22.3]} 17. Rxa4 {[%clk 0:02:21.6]} 17... Qb6 {[%clk 0:02:19.3]} 18. Rh4
{[%clk 0:02:13.4]} 18... Rbc8 {[%clk 0:02:16.2]} 19. Qd3 {[%clk 0:01:56.3]}
19... Ne4 {[%clk 0:02:14.6]} 20. Bd4 {[%clk 0:01:50.5]} 20... Qb5 {[%clk
0:02:11]} 21. Rg4 {[%clk 0:01:45.5]} 21... f6 {[%clk 0:02:04.8]} 22. Nh4 {[%clk
0:01:36.4]} 22... g6 {[%clk 0:01:45.2]} 23. Nf5 {[%clk 0:01:33.3]} 23... Bb4
{[%clk 0:01:44]} 24. Qe3 {[%clk 0:01:13.8]} 24... Qd7 {[%clk 0:01:35.5]} 25.
Bxe4 {[%clk 0:00:57.8]} 25... Rce8 {[%clk 0:01:18.3]} 26. Nh6+ {[%clk
0:00:45.7]} 26... Kg7 {[%clk 0:01:15.6]} 27. Nf5+ {[%clk 0:00:33.6]} 27... Kh8
{[%clk 0:01:12.8]} 28. Qh6 {[%clk 0:00:27.8]} 28... Rxe4 {[%clk 0:00:49.8]} 29.
Rxe4 {[%clk 0:00:19.8]} 29... Qxf5 {[%clk 0:00:45.1]} 30. Rf4 {[%clk 0:00:08.1]}
30... Qe6 {[%clk 0:00:42]} 31. Rh4 {[%clk 0:00:06]} 31... Rf7 {[%clk 0:00:32.4]}
32. Rc1 {[%clk 0:00:05.7]} 32... Kg8 {[%clk 0:00:18.1]} 33. e3 {[%clk
0:00:04.8]} 33... g5 {[%clk 0:00:13.6]} 34. Rh5 {[%clk 0:00:02.9]} 34... Bf8
{[%clk 0:00:13.1]} 35. Rxg5+ {[%clk 0:00:01.8]} 35... fxg5 {[%clk 0:00:13.3]}
36. Qxe6 {[%clk 0:00:02.3]} 36... a4 {[%clk 0:00:11.8]} 37. Rc7 {[%clk
0:00:02.8]} 37... Be7 {[%clk 0:00:10.5]} 38. Rxe7 {[%clk 0:00:03.1]} 38... Bc8
{[%clk 0:00:11.4]} 39. Qxf7# {[%clk 0:00:03.2]} 1-0

[Event "Early-Titled-Tuesday-Blitz-March-19-2024"]
[Site "Chess.com"]
[Date "2024.03.19"]
[Round "6"]
[White "chess123456s"]
[Black "bobo_panda"]
[Result "1-0"]
[WhiteElo "2546"]
[BlackElo "2343"]
[TimeControl "180+1"]
[EndTime "9:07:15 PDT"]
[Termination "chess123456s won by checkmate"]

1. Nf3 {[%clk 0:03:00.9]} 1... Nf6 {[%clk 0:02:59.5]} 2. g3 {[%clk 0:03:00.1]}
2... b5 {[%clk 0:02:59.6]} 3. Bg2 {[%clk 0:03:00.2]} 3... Bb7 {[%clk 0:02:59.7]}
4. O-O {[%clk 0:03:00.9]} 4... e6 {[%clk 0:02:59.9]} 5. b3 {[%clk 0:03:01.5]}
5... c5 {[%clk 0:03:00.3]} 6. Bb2 {[%clk 0:03:02]} 6... Be7 {[%clk 0:03:00.7]}
7. a4 {[%clk 0:03:01.8]} 7... b4 {[%clk 0:02:59.1]} 8. d3 {[%clk 0:03:00.7]}
8... a5 {[%clk 0:02:58.6]} 9. e4 {[%clk 0:03:00.8]} 9... d6 {[%clk 0:02:58.7]}
10. Nbd2 {[%clk 0:03:01.2]} 10... Nbd7 {[%clk 0:02:58.1]} 11. Nc4 {[%clk
0:03:01.6]} 11... O-O {[%clk 0:02:55.7]} 12. Re1 {[%clk 0:03:02.1]} 12... Ne8
{[%clk 0:02:53.4]} 13. Qd2 {[%clk 0:02:59.1]} 13... Bf6 {[%clk 0:02:53.4]} 14.
Bxf6 {[%clk 0:02:58.8]} 14... Ndxf6 {[%clk 0:02:53.6]} 15. e5 {[%clk 0:02:59.1]}
15... dxe5 {[%clk 0:02:52.6]} 16. Rxe5 {[%clk 0:03:00]} 16... Rc8 {[%clk
0:02:50.9]} 17. Rae1 {[%clk 0:02:59.6]} 17... Nd6 {[%clk 0:02:50.6]} 18. Nxd6
{[%clk 0:02:56.2]} 18... Qxd6 {[%clk 0:02:51.5]} 19. Qd1 {[%clk 0:02:49.9]}
19... Rfd8 {[%clk 0:02:40.5]} 20. Nd2 {[%clk 0:02:49.3]} 20... Bxg2 {[%clk
0:02:39.9]} 21. Kxg2 {[%clk 0:02:49.6]} 21... Qc6+ {[%clk 0:02:37.7]} 22. Kg1
{[%clk 0:02:49]} 22... Nd7 {[%clk 0:02:31.2]} 23. R5e3 {[%clk 0:02:44.6]} 23...
Nb6 {[%clk 0:02:31.3]} 24. Re5 {[%clk 0:02:37.8]} 24... Rd5 {[%clk 0:02:30.7]}
25. Qh5 {[%clk 0:02:34.2]} 25... g6 {[%clk 0:02:26.9]} 26. Qg5 {[%clk
0:02:31.9]} 26... Rxe5 {[%clk 0:02:19.8]} 27. Qxe5 {[%clk 0:02:31.8]} 27... Rd8
{[%clk 0:02:15.1]} 28. Ne4 {[%clk 0:02:31.7]} 28... Nd5 {[%clk 0:02:10.3]} 29.
Qg5 {[%clk 0:02:27]} 29... Rc8 {[%clk 0:01:59.4]} 30. h4 {[%clk 0:02:26.2]}
30... Kg7 {[%clk 0:01:54.8]} 31. h5 {[%clk 0:02:13.7]} 31... f6 {[%clk
0:01:54.9]} 32. h6+ {[%clk 0:02:10.5]} 32... Kf7 {[%clk 0:01:54.5]} 33. Qd2
{[%clk 0:02:07.6]} 33... Re8 {[%clk 0:01:50.4]} 34. Qe2 {[%clk 0:02:05.8]} 34...
Nc3 {[%clk 0:01:23.7]} 35. Nxc3 {[%clk 0:01:59.5]} 35... bxc3 {[%clk 0:01:24.6]}
36. Qe3 {[%clk 0:01:56]} 36... Qd5 {[%clk 0:01:21.9]} 37. Qe4 {[%clk 0:01:55.5]}
37... Rd8 {[%clk 0:01:19.4]} 38. Qf4 {[%clk 0:01:54.3]} 38... e5 {[%clk
0:01:18.8]} 39. Qg4 {[%clk 0:01:52]} 39... Qd7 {[%clk 0:01:17.3]} 40. Qc4+
{[%clk 0:01:51.6]} 40... Qd5 {[%clk 0:01:15.1]} 41. Qxc3 {[%clk 0:01:51.9]}
41... g5 {[%clk 0:01:13.6]} 42. Qxa5 {[%clk 0:01:50.2]} 42... Kg6 {[%clk
0:01:13.9]} 43. Qc7 {[%clk 0:01:47.1]} 43... Rd7 {[%clk 0:01:13.2]} 44. Qc8
{[%clk 0:01:46.4]} 44... Kxh6 {[%clk 0:01:13.4]} 45. a5 {[%clk 0:01:45.5]} 45...
Kh5 {[%clk 0:01:12.1]} 46. Re4 {[%clk 0:01:39.1]} 46... f5 {[%clk 0:01:10.5]}
47. Qe8+ {[%clk 0:01:38.1]} 47... Kh6 {[%clk 0:01:09.8]} 48. Rxe5 {[%clk
0:01:38]} 48... Qd4 {[%clk 0:01:07.6]} 49. Rxf5 {[%clk 0:01:33]} 49... Rg7
{[%clk 0:01:02.3]} 50. a6 {[%clk 0:01:14.4]} 50... Qa1+ {[%clk 0:01:00.8]} 51.
Kg2 {[%clk 0:01:14.9]} 51... Qxa6 {[%clk 0:01:01.3]} 52. Qf8 {[%clk 0:01:12.8]}
52... Kg6 {[%clk 0:00:59.2]} 53. Rxg5+ {[%clk 0:01:10.8]} 53... Kxg5 {[%clk
0:00:58.9]} 54. Qxg7+ {[%clk 0:01:11.7]} 54... Kh5 {[%clk 0:00:59]} 55. Qxh7+
{[%clk 0:01:12]} 55... Kg5 {[%clk 0:00:59.1]} 56. Qe7+ {[%clk 0:01:11.5]} 56...
Kf5 {[%clk 0:00:58.7]} 57. Qxc5+ {[%clk 0:01:10.7]} 57... Kg6 {[%clk 0:00:59.2]}
58. Qd5 {[%clk 0:01:09.8]} 58... Qa1 {[%clk 0:00:54.7]} 59. Qe4+ {[%clk
0:01:09.4]} 59... Kf6 {[%clk 0:00:54]} 60. b4 {[%clk 0:01:09.9]} 60... Qb2
{[%clk 0:00:52.7]} 61. Qc4 {[%clk 0:01:08]} 61... Kg5 {[%clk 0:00:50]} 62. b5
{[%clk 0:01:07.5]} 62... Qh8 {[%clk 0:00:47.1]} 63. Qd5+ {[%clk 0:01:07.3]}
63... Kg6 {[%clk 0:00:46.5]} 64. c4 {[%clk 0:01:07.4]} 64... Qb8 {[%clk
0:00:43.7]} 65. Qc6+ {[%clk 0:01:07.1]} 65... Kg5 {[%clk 0:00:43.9]} 66. b6
{[%clk 0:01:06.9]} 66... Kg4 {[%clk 0:00:42.4]} 67. d4 {[%clk 0:01:02.9]} 67...
Qh8 {[%clk 0:00:41.8]} 68. Qf3+ {[%clk 0:00:59.4]} 68... Kg5 {[%clk 0:00:41.4]}
69. c5 {[%clk 0:01:00.3]} 69... Qxd4 {[%clk 0:00:41.1]} 70. Qe3+ {[%clk
0:00:57.8]} 70... Qxe3 {[%clk 0:00:41.3]} 71. fxe3 {[%clk 0:00:58.7]} 71... Kf5
{[%clk 0:00:42]} 72. b7 {[%clk 0:00:58.9]} 72... Ke5 {[%clk 0:00:42.9]} 73.
b8=Q+ {[%clk 0:00:59.4]} 73... Ke4 {[%clk 0:00:43.8]} 74. Qd6 {[%clk 0:00:59.4]}
74... Kxe3 {[%clk 0:00:44.7]} 75. c6 {[%clk 0:00:59.8]} 75... Ke4 {[%clk
0:00:44.6]} 76. c7 {[%clk 0:01:00.7]} 76... Ke3 {[%clk 0:00:45.4]} 77. c8=Q
{[%clk 0:01:01.2]} 77... Ke4 {[%clk 0:00:46.3]} 78. Qcf8 {[%clk 0:00:59.5]}
78... Ke3 {[%clk 0:00:47.2]} 79. Qe8# {[%clk 0:01:00.4]} 1-0

[Event "Early-Titled-Tuesday-Blitz-March-19-2024"]
[Site "Chess.com"]
[Date "2024.03.19"]
[Round "6"]
[White "OparinGrigoriy"]
[Black "wonderfultime"]
[Result "1-0"]
[WhiteElo "2999"]
[BlackElo "3071"]
[TimeControl "180+1"]
[EndTime "9:07:17 PDT"]
[Termination "OparinGrigoriy won by resignation"]

1. Nc3 {[%clk 0:03:00.9]} 1... e5 {[%clk 0:02:50.9]} 2. e4 {[%clk 0:03:00.6]}
2... Nf6 {[%clk 0:02:49.5]} 3. Nf3 {[%clk 0:02:59.2]} 3... Nc6 {[%clk
0:02:49.3]} 4. h3 {[%clk 0:02:59.8]} 4... Bb4 {[%clk 0:02:48.8]} 5. Bd3 {[%clk
0:03:00]} 5... O-O {[%clk 0:02:44.3]} 6. O-O {[%clk 0:02:56.6]} 6... d6 {[%clk
0:02:41.1]} 7. a3 {[%clk 0:02:51.9]} 7... Ba5 {[%clk 0:02:37.4]} 8. Re1 {[%clk
0:02:46.5]} 8... h6 {[%clk 0:02:32.3]} 9. Bf1 {[%clk 0:02:46]} 9... Re8 {[%clk
0:02:29.4]} 10. b4 {[%clk 0:02:44.7]} 10... Bb6 {[%clk 0:02:27.3]} 11. Na4
{[%clk 0:02:45.4]} 11... d5 {[%clk 0:01:49.5]} 12. Nxb6 {[%clk 0:02:43.7]} 12...
axb6 {[%clk 0:01:49.5]} 13. exd5 {[%clk 0:02:36.3]} 13... Qxd5 {[%clk
0:01:50.4]} 14. Bb2 {[%clk 0:02:21.5]} 14... Bf5 {[%clk 0:01:46.8]} 15. d3
{[%clk 0:02:10.1]} 15... Rad8 {[%clk 0:01:41.1]} 16. c4 {[%clk 0:02:02.9]} 16...
Qd6 {[%clk 0:01:30.8]} 17. b5 {[%clk 0:02:03]} 17... Nd4 {[%clk 0:01:30.9]} 18.
Nxd4 {[%clk 0:02:02.7]} 18... exd4 {[%clk 0:01:31.8]} 19. Qf3 {[%clk 0:02:02.5]}
19... Bc8 {[%clk 0:01:15.6]} 20. Rxe8+ {[%clk 0:01:14.9]} 20... Rxe8 {[%clk
0:01:16.5]} 21. Qg3 {[%clk 0:01:15.5]} 21... Qd7 {[%clk 0:00:45.9]} 22. Qf4
{[%clk 0:01:12.6]} 22... Rd8 {[%clk 0:00:46.4]} 23. Re1 {[%clk 0:01:12.6]} 23...
c5 {[%clk 0:00:41.5]} 24. Bc1 {[%clk 0:01:05.4]} 24... Re8 {[%clk 0:00:37.9]}
25. Rxe8+ {[%clk 0:01:02.9]} 25... Qxe8 {[%clk 0:00:38.8]} 26. Qd6 {[%clk
0:01:02.7]} 26... Bf5 {[%clk 0:00:24.9]} 27. Bd2 {[%clk 0:00:59.1]} 27... Nd7
{[%clk 0:00:25.3]} 28. f4 {[%clk 0:00:43.7]} 28... h5 {[%clk 0:00:23.4]} 29. Kf2
{[%clk 0:00:36.8]} 29... g6 {[%clk 0:00:22.6]} 30. Qc7 {[%clk 0:00:31.3]} 30...
Qe7 {[%clk 0:00:18]} 31. Qxb7 {[%clk 0:00:27.5]} 31... Qh4+ {[%clk 0:00:18.6]}
32. g3 {[%clk 0:00:28.1]} 32... Qd8 {[%clk 0:00:16.9]} 33. Qf3 {[%clk
0:00:27.1]} 33... Nf6 {[%clk 0:00:16.2]} 34. Qc6 {[%clk 0:00:23.2]} 34... Kg7
{[%clk 0:00:16.7]} 35. a4 {[%clk 0:00:23.3]} 35... Bd7 {[%clk 0:00:13.4]} 36.
Qd6 {[%clk 0:00:19.8]} 36... Qc8 {[%clk 0:00:13.2]} 37. f5 {[%clk 0:00:19.5]}
37... Bxf5 {[%clk 0:00:11.6]} 38. Bg5 {[%clk 0:00:16.9]} 38... Nh7 {[%clk
0:00:09.7]} 39. Qe5+ {[%clk 0:00:15.1]} 39... Kg8 {[%clk 0:00:08.6]} 40. Bh6
{[%clk 0:00:15.5]} 40... f6 {[%clk 0:00:06.7]} 41. Qe7 {[%clk 0:00:15.6]} 41...
Qd7 {[%clk 0:00:07.3]} 42. Qxd7 {[%clk 0:00:15.3]} 42... Bxd7 {[%clk 0:00:08.2]}
43. Bf4 {[%clk 0:00:15.9]} 1-0

[Event "Early-Titled-Tuesday-Blitz-March-19-2024"]
[Site "Chess.com"]
[Date "2024.03.19"]
[Round "6"]
[White "diamonds13"]
[Black "Muracle"]
[Result "0-1"]
[WhiteElo "2339"]
[BlackElo "2553"]
[TimeControl "180+1"]
[EndTime "9:07:19 PDT"]
[Termination "Muracle won by checkmate"]

1. d4 {[%clk 0:03:00.9]} 1... Nf6 {[%clk 0:02:59.9]} 2. c4 {[%clk 0:03:00.9]}
2... e6 {[%clk 0:03:00.3]} 3. Nc3 {[%clk 0:03:00.9]} 3... Bb4 {[%clk 0:03:00.7]}
4. e3 {[%clk 0:03:01.1]} 4... c5 {[%clk 0:03:00.9]} 5. Bd3 {[%clk 0:02:57.6]}
5... Nc6 {[%clk 0:02:57.4]} 6. Ne2 {[%clk 0:02:57.7]} 6... O-O {[%clk
0:02:56.4]} 7. O-O {[%clk 0:02:56]} 7... Bxc3 {[%clk 0:02:56.9]} 8. Nxc3 {[%clk
0:02:55.5]} 8... cxd4 {[%clk 0:02:57.1]} 9. exd4 {[%clk 0:02:54.9]} 9... Nxd4
{[%clk 0:02:57.2]} 10. Bxh7+ {[%clk 0:02:54.2]} 10... Kxh7 {[%clk 0:02:57.9]}
11. Qxd4 {[%clk 0:02:54.1]} 11... Qa5 {[%clk 0:02:52]} 12. Qh4+ {[%clk
0:02:50.6]} 12... Qh5 {[%clk 0:02:49]} 13. Qg3 {[%clk 0:02:50.4]} 13... d5
{[%clk 0:02:45.3]} 14. Bg5 {[%clk 0:02:48.9]} 14... Ne4 {[%clk 0:02:19.4]} 15.
Nxe4 {[%clk 0:02:41]} 15... dxe4 {[%clk 0:02:20.3]} 16. Rad1 {[%clk 0:02:38.8]}
16... b6 {[%clk 0:02:12.8]} 17. Be7 {[%clk 0:02:21]} 17... Re8 {[%clk
0:02:10.3]} 18. Qc7 {[%clk 0:02:15.6]} 18... Ba6 {[%clk 0:02:05.9]} 19. Bd8
{[%clk 0:02:04.9]} 19... Rc8 {[%clk 0:01:59]} 20. Qxa7 {[%clk 0:01:45.1]} 20...
Bxc4 {[%clk 0:01:57.2]} 21. Bxb6 {[%clk 0:01:38.5]} 21... Bxf1 {[%clk
0:01:55.9]} 22. Rxf1 {[%clk 0:01:38.2]} 22... Qd5 {[%clk 0:01:51.9]} 23. Qa3
{[%clk 0:01:33.6]} 23... Ra8 {[%clk 0:01:50.3]} 24. Qh3+ {[%clk 0:01:31.7]}
24... Kg8 {[%clk 0:01:51]} 25. a3 {[%clk 0:01:16.9]} 25... Rab8 {[%clk
0:01:48.1]} 26. Qe3 {[%clk 0:01:16.2]} 26... Qd3 {[%clk 0:01:44.2]} 27. Bd4
{[%clk 0:01:10.8]} 27... Red8 {[%clk 0:01:26.6]} 28. Be5 {[%clk 0:01:09.1]}
28... Rb5 {[%clk 0:01:21.6]} 29. Bc3 {[%clk 0:01:02.4]} 29... Rf5 {[%clk
0:01:10.5]} 30. Re1 {[%clk 0:00:45.6]} 30... Qc2 {[%clk 0:00:58.1]} 31. Qg3
{[%clk 0:00:40]} 31... f6 {[%clk 0:00:52.1]} 32. h4 {[%clk 0:00:37.3]} 32... Rd3
{[%clk 0:00:51.5]} 33. Re3 {[%clk 0:00:34.9]} 33... Qc1+ {[%clk 0:00:29.1]} 34.
Kh2 {[%clk 0:00:32.1]} 34... Rxe3 {[%clk 0:00:29.4]} 35. fxe3 {[%clk 0:00:30.9]}
35... Qd1 {[%clk 0:00:24.2]} 36. Qb8+ {[%clk 0:00:30]} 36... Kh7 {[%clk
0:00:24.5]} 37. Qe8 {[%clk 0:00:26.6]} 37... Qg4 {[%clk 0:00:23.7]} 38. Be1
{[%clk 0:00:25.4]} 38... Rf1 {[%clk 0:00:21.6]} 39. Bg3 {[%clk 0:00:24.5]} 39...
Qd1 {[%clk 0:00:13.7]} 40. Bf4 {[%clk 0:00:20.2]} 40... Rh1+ {[%clk 0:00:14.1]}
41. Kg3 {[%clk 0:00:20.5]} 41... Qe1+ {[%clk 0:00:14.8]} 42. Kg4 {[%clk
0:00:19.1]} 42... f5+ {[%clk 0:00:10.8]} 43. Kg5 {[%clk 0:00:12.3]} 43... Qxh4#
{[%clk 0:00:10.8]} 0-1